fUSD/lending_fUSD_20260129
["ID","MTS","AMOUNT","RATE_DAILY","PERIOD"]
[404003974,1769710164323,-150.0,0.00016164,2]
[404003975,1769710164355,-500.0,0.00016164,2]
[404003976,1769710164374,-500.0,0.00016164,2]
[404003977,1769710164396,-500.0,0.00016164,2]
[404003978,1769710164416,-150.0,0.00016164,2]
[404003979,1769710164437,-150.0,0.00016164,2]
[404003980,1769710164458,-150.0,0.00016164,2]
[404003981,1769710164478,-153.57030056,0.00016164,2]
[404003982,1769710164497,-150.0,0.00016164,2]
[404003983,1769710164516,-150.0,0.00016164,2]
[404003984,1769710164535,-150.0,0.00016164,2]
[404003985,1769710164555,-500.0,0.00016164,2]
[404003986,1769710164574,-500.0,0.00016164,2]
[404003987,1769710164593,-500.0,0.00016164,2]
[404003988,1769710164613,-150.0,0.00016164,2]
[404003989,1769710164632,-150.0,0.00016164,2]
[404003990,1769710164652,-500.0,0.00016164,2]
[404003991,1769710164672,-194.0,0.00016164,2]
[404003992,1769710164694,-500.0,0.00016164,2]
[404003993,1769710164714,-240.49848305,0.00016164,2]
[404003994,1769710164734,-500.0,0.00016164,2]
[404003997,1769710177944,500.0,0.00015912,2]
[404003998,1769710177970,250.34724417,0.00015912,2]
[404003999,1769710178112,500.0,0.00015967,2]
[404004000,1769710178163,150.0,0.00015912,2]
[404004001,1769710178287,301.95608544,0.00016022,2]
[404004002,1769710178334,150.0,0.00015967,2]
[404004003,1769710178501,173.21613332,0.00016022,2]
[404004004,1769710179227,500.0,0.00015912,2]
[404004005,1769710179254,150.0,0.00015912,2]
[404004006,1769710179300,500.0,0.00015912,2]
[404004007,1769710179399,150.0,0.00015967,2]
[404004008,1769710179461,500.0,0.00015967,2]
[404004009,1769710179501,362.54801825,0.00015967,2]
[404004010,1769710179530,500.0,0.00015912,2]
[404004011,1769710179629,200.0,0.00016022,2]
[404004012,1769710179665,150.0,0.00015912,2]
[404004013,1769710179707,500.0,0.00015967,2]
[404004014,1769710179771,150.0,0.00016022,2]
[404004015,1769710179805,150.0,0.00015912,2]
[404004016,1769710179878,500.0,0.00016022,2]
[404004017,1769710179959,120.42828282,0.00016076,2]
[404004018,1769710179986,29.57171718,0.00016076,2]
[404004019,1769710180127,250.0,0.00016131,2]
[404004020,1769710180365,150.0,0.00015912,2]
[404004021,1769710182567,500.0,0.00015912,2]
[404004022,1769710182753,500.0,0.00015967,2]
[404004023,1769710182979,500.0,0.00016022,2]
[404004024,1769710183137,500.0,0.00016076,2]
[404004025,1769710183319,500.0,0.00016131,2]
[404004026,1769710183552,500.0,0.00016186,2]
[404004035,1769710207690,176.0,0.00016186,3]
[404004047,1769710224203,151.0,0.00016067,2]
[404004053,1769710231930,-353.8945,0.00016203,2]
[404004054,1769710231941,-600.65289191,0.00016203,2]
[404004055,1769710231953,-222.46260809,0.00016203,2]
[404004056,1769710231962,-1200.0,0.00016218,2]
[404004057,1769710231972,-300.0,0.00016218,2]
[404004059,1769710231981,-150.0,0.00016219,2]
[404004060,1769710231990,-204.59716346,0.00016219,2]
[404004062,1769710232000,-150.0,0.00016219,2]
[404004064,1769710232010,-500.0,0.00016219,2]
[404004066,1769710232020,-500.0,0.00016219,2]
[404004068,1769710232031,-252.34395111,0.00016219,2]
[404004070,1769710232041,-500.0,0.00016219,2]
[404004071,1769710232050,-290.22964713,0.00016219,2]
[404004072,1769710232059,-500.0,0.00016219,2]
[404004074,1769710232068,-500.0,0.00016219,2]
[404004075,1769710232078,-500.0,0.00016219,2]
[404004076,1769710232088,-500.0,0.00016241,2]
[404004078,1769710232097,-151.0,0.00016252,2]
[404004079,1769710232107,-151.0,0.00016256,2]
[404004080,1769710232117,-151.0,0.0001626,2]
[404004082,1769710232127,-150.0,0.00016274,2]
[404004083,1769710232136,-150.0,0.00016274,2]
[404004084,1769710232145,-500.0,0.00016274,2]
[404004085,1769710232155,-500.0,0.00016274,2]
[404004087,1769710232167,-379.63759782,0.00016274,2]
[404004088,1769710232177,-500.0,0.00016274,2]
[404004089,1769710232186,-500.0,0.00016274,2]
[404004090,1769710232195,-500.0,0.00016274,2]
[404004091,1769710232204,-500.0,0.00016296,2]
[404004092,1769710232213,-214.13964657,0.00016328,2]
[404004093,1769710232224,-250.0,0.00016328,2]
[404004094,1769710232234,-500.0,0.00016328,2]
[404004095,1769710232244,-500.0,0.00016328,2]
[404004096,1769710232253,-500.0,0.00016328,2]
[404004097,1769710232263,-500.0,0.00016328,2]
[404004098,1769710232272,-500.0,0.00016328,2]
[404004099,1769710232282,-451.76834126,0.0001635,2]
[404004100,1769710232293,-500.0,0.00016372,2]
[404004101,1769710232303,-500.0,0.00016372,2]
[404004102,1769710232313,-630.82480531,0.00016372,2]
[404004103,1769710232322,-500.0,0.00016373,2]
[404004104,1769710232331,-500.0,0.00016373,2]
[404004105,1769710232341,-500.0,0.00016373,2]
[404004106,1769710232350,-606.81558128,0.00016373,2]
[404004107,1769710232360,-500.0,0.00016373,2]
[404004108,1769710232370,-500.0,0.00016373,2]
[404004109,1769710232379,-500.0,0.00016373,2]
[404004110,1769710232389,-500.0,0.00016373,2]
[404004111,1769710232398,-500.0,0.00016373,2]
[404004112,1769710232408,-500.0,0.00016373,2]
[404004113,1769710232417,-500.0,0.00016373,2]
[404004114,1769710232427,-500.0,0.00016373,2]
[404004115,1769710232436,-500.0,0.00016383,2]
[404004116,1769710232445,-500.0,0.00016383,2]
[404004117,1769710232455,-500.0,0.00016383,2]
[404004118,1769710232464,-500.0,0.00016383,2]
[404004119,1769710232473,-500.0,0.00016383,2]
[404004120,1769710232483,-500.0,0.00016438,2]
[404004121,1769710232492,-500.0,0.00016438,2]
[404004122,1769710232502,-500.0,0.00016438,2]
[404004123,1769710232511,-500.0,0.00016438,2]
[404004124,1769710232521,-500.0,0.00016438,2]
[404004125,1769710232530,-767.16,0.00016438,2]
[404004126,1769710232539,-500.0,0.00016438,2]
[404004127,1769710232548,-500.0,0.00016438,2]
[404004128,1769710232557,-500.0,0.00016438,2]
[404004129,1769710232567,-500.0,0.00016438,2]
[404004130,1769710232576,-500.0,0.00016438,2]
[404004131,1769710232585,-500.0,0.00016438,2]
[404004132,1769710232594,-500.0,0.00016438,2]
[404004133,1769710232603,-500.0,0.00016438,2]
[404004134,1769710232613,-500.0,0.00016438,2]
[404004135,1769710232623,-500.0,0.00016438,2]
[404004136,1769710232633,-612.63545605,0.00016438,2]
[404004137,1769710232644,-500.0,0.00016438,2]
[404004138,1769710232653,-500.0,0.00016438,2]
[404004139,1769710232663,-500.0,0.00016438,2]
[404004140,1769710232672,-500.0,0.00016438,2]
[404004141,1769710232681,-500.0,0.00016438,2]
[404004142,1769710232690,-500.0,0.00016438,2]
[404004143,1769710232699,-500.0,0.00016438,2]
[404004144,1769710232708,-500.0,0.00016438,2]
[404004145,1769710232718,-500.0,0.00016438,2]
[404004146,1769710232727,-500.0,0.00016438,2]
[404004147,1769710232737,-500.0,0.00016438,2]
[404004148,1769710232746,-500.0,0.00016438,2]
[404004149,1769710232756,-500.0,0.00016438,2]
[404004150,1769710232765,-500.0,0.00016438,2]
[404004151,1769710232816,-500.0,0.00016438,2]
[404004152,1769710232826,-500.0,0.00016438,2]
[404004153,1769710232836,-500.0,0.00016438,2]
[404004154,1769710232846,-500.0,0.00016438,2]
[404004155,1769710232855,-500.0,0.00016438,2]
[404004156,1769710232865,-500.0,0.00016438,2]
[404004157,1769710232875,-500.0,0.00016438,2]
[404004158,1769710232884,-500.0,0.00016438,2]
[404004159,1769710232894,-500.0,0.00016438,2]
[404004160,1769710232903,-500.0,0.00016438,2]
[404004161,1769710232912,-500.0,0.00016438,2]
[404004162,1769710232921,-500.0,0.00016438,2]
[404004163,1769710232941,-500.0,0.00016438,2]
[404004164,1769710232951,-500.0,0.00016438,2]
[404004165,1769710232960,-500.00000001,0.00016438,2]
[404004166,1769710232970,-166.82,0.00016461,2]
[404004167,1769710232980,-500.0,0.00016493,2]
[404004168,1769710232989,-500.0,0.00016493,2]
[404004169,1769710233000,-500.0,0.00016493,2]
[404004170,1769710233010,-500.0,0.00016493,2]
[404004171,1769710233020,-500.0,0.00016493,2]
[404004172,1769710233029,-341.61275203,0.000165,2]
[404004173,1769710233039,-1023.81512056,0.000165,2]
[404004174,1769710233048,-1112.24852932,0.000165,2]
[404004175,1769710233062,-482.883945,0.000165,2]
[404004176,1769710233076,-1184.03311277,0.000165,2]
[404004177,1769710233086,-300.0,0.00016548,2]
[404004178,1769710233096,-500.0,0.00016548,2]
[404004179,1769710233106,-170.95,0.00016572,2]
[404004180,1769710233115,-767.16,0.00016712,2]
[404004181,1769710233126,-2500.0,0.00016821,2]
[404004182,1769710233135,-510.0,0.00016844,2]
[404004183,1769710233145,-250.0,0.00016878,2]
[404004184,1769710233154,-195.0,0.00016878,2]
[404004185,1769710233164,-1000.0,0.00016921,2]
[404004186,1769710233173,-1000.0,0.00016921,2]
[404004187,1769710233183,-62.1642859,0.00016921,2]
[404004188,1769710233195,-937.8357141,0.00016921,2]
[404004189,1769710233204,-726.99112244,0.00016921,2]
[404004190,1769710233214,-1000.0,0.00016921,2]
[404004191,1769710233223,-1000.0,0.00016921,2]
[404004192,1769710233232,-1000.0,0.00016921,2]
[404004193,1769710233242,-1000.0,0.00016921,2]
[404004194,1769710233251,-1000.0,0.00016921,2]
[404004195,1769710233260,-1000.0,0.00016921,2]
[404004196,1769710233270,-1007.7084502,0.00016921,2]
[404004197,1769710233280,-322.6107,0.00016952,2]
[404004198,1769710233293,-174.61919141,0.00016952,2]
[404004199,1769710233302,-721.12765535,0.00016952,2]
[404004200,1769710233311,-250.0,0.00016952,2]
[404004201,1769710233320,-500.0,0.00016952,2]
[404004202,1769710233331,-250.0,0.00016952,2]
[404004203,1769710233341,-500.0,0.00016952,2]
[404004204,1769710233350,-250.0,0.00016952,2]
[404004205,1769710233361,-250.0,0.00016952,2]
[404004206,1769710233371,-500.0,0.00016952,2]
[404004207,1769710233380,-250.0,0.00016952,2]
[404004208,1769710233389,-250.0,0.00016952,2]
[404004209,1769710233399,-500.0,0.00016952,2]
[404004210,1769710233408,-250.0,0.00016952,2]
[404004211,1769710233418,-250.0,0.00016952,2]
[404004212,1769710233427,-500.0,0.00016952,2]
[404004213,1769710233436,-250.0,0.00016952,2]
[404004214,1769710233446,-250.0,0.00016952,2]
[404004215,1769710233455,-250.0,0.00016952,2]
[404004216,1769710233464,-193.98516038,0.00016952,2]
[404004218,1769710237881,-200.0,0.00016792,2]
[404004219,1769710237890,-56.01483962,0.00016952,2]
[404004220,1769710237900,-500.0,0.00016952,2]
[404004221,1769710237909,-250.0,0.00016952,2]
[404004222,1769710237919,-250.0,0.00016952,2]
[404004223,1769710237928,-250.0,0.00016952,2]
[404004224,1769710237938,-500.0,0.00016952,2]
[404004225,1769710237948,-250.0,0.00016952,2]
[404004226,1769710237959,-250.0,0.00016952,2]
[404004227,1769710237968,-250.0,0.00016952,2]
[404004228,1769710237977,-500.0,0.00016952,2]
[404004229,1769710237986,-250.0,0.00016952,2]
[404004230,1769710237995,-257.17431342,0.00016952,2]
[404004231,1769710238005,-854.2589148,0.00016952,2]
[404004232,1769710238014,-250.0,0.00016952,2]
[404004233,1769710238024,-500.0,0.00016952,2]
[404004234,1769710238033,-250.0,0.00016952,2]
[404004235,1769710238042,-500.0,0.00016952,2]
[404004236,1769710238051,-250.0,0.00016952,2]
[404004237,1769710238061,-500.0,0.00016952,2]
[404004238,1769710238071,-500.0,0.00016952,2]
[404004239,1769710238080,-500.0,0.00016952,2]
[404004240,1769710238090,-500.0,0.00016952,2]
[404004241,1769710238100,-250.0,0.00016952,2]
[404004242,1769710238109,-500.0,0.00016952,2]
[404004243,1769710238118,-500.0,0.00016952,2]
[404004244,1769710238127,-500.0,0.00016952,2]
[404004245,1769710238137,-500.0,0.00016952,2]
[404004246,1769710238146,-500.0,0.00016952,2]
[404004247,1769710238155,-250.0,0.00016952,2]
[404004248,1769710238165,-500.0,0.00016952,2]
[404004249,1769710238174,-250.0,0.00016952,2]
[404004250,1769710238183,-500.0,0.00016952,2]
[404004251,1769710238192,-578.20924308,0.00016952,2]
[404004252,1769710238201,-500.0,0.00016952,2]
[404004254,1769710238210,-500.0,0.00016952,2]
[404004256,1769710238219,-250.0,0.00016952,2]
[404004257,1769710238229,-500.0,0.00016952,2]
[404004258,1769710238238,-500.0,0.00016952,2]
[404004259,1769710238248,-250.0,0.00016952,2]
[404004260,1769710238257,-500.0,0.00016952,2]
[404004261,1769710238266,-250.0,0.00016952,2]
[404004262,1769710238275,-500.0,0.00016952,2]
[404004263,1769710238286,-250.0,0.00016952,2]
[404004264,1769710238302,-500.0,0.00016952,2]
[404004265,1769710238311,-250.0,0.00016952,2]
[404004266,1769710238321,-500.0,0.00016952,2]
[404004267,1769710238331,-250.0,0.00016952,2]
[404004268,1769710238340,-500.0,0.00016952,2]
[404004269,1769710238350,-500.0,0.00016952,2]
[404004270,1769710238360,-500.0,0.00016952,2]
[404004271,1769710238371,-209.40437684,0.00016952,2]
[404004272,1769710238380,-500.0,0.00016952,2]
[404004273,1769710238390,-1000.0,0.00016952,2]
[404004274,1769710238399,-1000.0,0.00016952,2]
[404004275,1769710238408,-1000.0,0.00016952,2]
[404004276,1769710238418,-1000.0,0.00016952,2]
[404004277,1769710238427,-1000.0,0.00016952,2]
[404004278,1769710238437,-1000.0,0.00016952,2]
[404004279,1769710238446,-1000.0,0.00016952,2]
[404004280,1769710238455,-1000.0,0.00016952,2]
[404004281,1769710238465,-1130.5264276,0.00016952,2]
[404004282,1769710238474,-1177.01,0.00016975,2]
[404004283,1769710238484,-767.16,0.00016986,2]
[404004284,1769710238494,-250.0,0.00017,2]
[404004285,1769710238503,-502.39531283,0.00017,5]
[404004286,1769710238512,-217.15233878,0.00017007,2]
[404004287,1769710238522,-225.18697532,0.00017062,2]
[404004288,1769710238531,-500.0,0.00017068,2]
[404004289,1769710238541,-500.0,0.000171,6]
[404004290,1769710238550,-233.51889341,0.00017117,2]
[404004291,1769710238559,-5888.0,0.00017127,2]
[404004292,1769710238568,-242.15909246,0.00017172,2]
[404004293,1769710238578,-1100.0,0.000172,6]
[404004294,1769710238587,-251.11897888,0.00017227,2]
[404004295,1769710238596,-200.0,0.00017229,2]
[404004296,1769710238606,-767.16,0.0001726,2]
[404004297,1769710238615,-200.0,0.00017262,2]
[404004298,1769710238625,-260.4103811,0.00017282,2]
[404004299,1769710238635,-1700.0,0.000173,6]
[404004300,1769710238644,-5888.0,0.00017327,2]
[404004301,1769710238654,-270.0455652,0.00017337,2]
[404004302,1769710238663,-280.03725112,0.00017392,2]
[404004303,1769710238672,-2200.0,0.000174,6]
[404004304,1769710238682,-290.39862941,0.00017447,2]
[404004305,1769710238691,-1500.0,0.00017468,2]
[404004306,1769710238701,-547.44038762,0.00017468,2]
[404004307,1769710238711,-1000.0,0.00017468,2]
[404004308,1769710238720,-796.55427389,0.00017468,2]
[404004309,1769710238729,-181.08010149,0.000175,2]
[404004310,1769710238739,-885.86649465,0.000175,2]
[404004311,1769710238748,-2800.0,0.000175,6]
[404004312,1769710238757,-301.1433787,0.00017502,2]
[404004313,1769710238767,-767.16,0.00017534,2]
[404004314,1769710238776,-200.0,0.00017539,2]
[404004315,1769710238785,-5888.0,0.00017563,2]
[404004316,1769710238794,-916.0,0.00017571,2]
[404004317,1769710238804,-1204.0,0.00017571,2]
[404004318,1769710238813,-500.0,0.000176,6]
[404004319,1769710238822,-5888.0,0.00017625,2]
[404004320,1769710238831,-6679.41382974,0.0001763,2]
[404004321,1769710238844,-842.93,0.0001763,2]
[404004322,1769710238855,-785.37658316,0.0001763,2]
[404004323,1769710238871,-426.85620312,0.0001763,2]
[404004324,1769710238882,-435.68171857,0.0001763,2]
[404004325,1769710238893,-5624.75674096,0.0001763,2]
[404004326,1769710238905,-6838.7787683,0.0001763,2]
[404004327,1769710238915,-200.0,0.0001764,2]
[404004328,1769710238924,-2854.26633812,0.0001764,2]
[404004329,1769710238936,-2.96124178,0.0001764,2]
[404004330,1769710238946,-5714.10423822,0.0001766,2]
[404004331,1769710238957,-3370.0,0.0001766,2]
[404004332,1769710238968,-423.97999999,0.0001766,2]
[404004333,1769710238980,-12125.70960559,0.0001766,2]
[404004334,1769710238989,-200.0,0.0001768,2]
[404004335,1769710238998,-21633.7938438,0.0001769,2]
[404004336,1769710239008,-500.0,0.000177,6]
[404004337,1769710239017,-21633.7938438,0.0001772,2]
[404004338,1769710239028,-420.0,0.00017728,2]
[404004339,1769710239037,-753.42247217,0.0001773,2]
[404004340,1769710239047,-1988.29382436,0.0001773,2]
[404004341,1769710239056,-3507.58598616,0.0001773,2]
[404004342,1769710239066,-3927.40683356,0.0001773,2]
[404004343,1769710239085,-550.0,0.0001773,2]
[404004344,1769710239096,-769.7320268,0.0001773,2]
[404004345,1769710239106,-198.6254732,0.0001773,2]
[404004348,1769710239888,-706.5276335,0.0001773,2]
[404004349,1769710239899,-431.68655482,0.0001773,2]
[404004350,1769710239943,-605.65099173,0.0001773,2]
[404004351,1769710239955,-5157.06664675,0.0001773,2]
[404004352,1769710239964,-1177.01,0.00017747,2]
[404004353,1769710239975,-21633.7938438,0.0001775,2]
[404004354,1769710239986,-21633.7938438,0.0001778,2]
[404004355,1769710239995,-168.95746243,0.00017791,2]
[404004356,1769710240004,-5854.02621459,0.000178,2]
[404004357,1769710240013,-500.0,0.000178,6]
[404004358,1769710240023,-767.16,0.00017808,2]
[404004359,1769710240032,-21633.7938438,0.0001781,2]
[404004360,1769710240042,-5854.0262145,0.00017811,2]
[404004361,1769710240052,-1680.0,0.00017816,2]
[404004362,1769710240061,-2464.682,0.00017819,2]
[404004363,1769710240072,-6573.0,0.00017819,2]
[404004364,1769710240082,-5932.0,0.00017819,2]
[404004365,1769710240091,-1132.09799,0.0001782,2]
[404004366,1769710240100,-1132.098,0.0001782,2]
[404004367,1769710240109,-5854.0262145,0.00017822,2]
[404004368,1769710240119,-5854.0262145,0.00017833,2]
[404004369,1769710240128,-21633.7938438,0.0001784,2]
[404004370,1769710240138,-5854.0262145,0.00017844,2]
[404004371,1769710240147,-5854.0262145,0.00017856,2]
[404004372,1769710240154,-200.0,0.00017856,2]
[404004373,1769710240160,-25000.0,0.00017865,3]
[404004374,1769710240167,-5854.0262145,0.00017867,2]
[404004375,1769710240176,-21633.7938438,0.0001787,2]
[404004376,1769710240184,-500.0,0.00017873,2]
[404004377,1769710240194,-25000.0,0.00017874,3]
[404004378,1769710240204,-5854.0262145,0.00017878,2]
[404004379,1769710240214,-25000.0,0.00017882,3]
[404004380,1769710240223,-5854.0262145,0.00017889,2]
[404004381,1769710240235,-25000.0,0.00017891,3]
[404004382,1769710240244,-153.72473404,0.00017896,2]
[404004383,1769710240254,-247.32301206,0.00017896,2]
[404004384,1769710240263,-186.39659392,0.00017896,2]
[404004385,1769710240273,-186.3965939,0.00017897,2]
[404004386,1769710240283,-10000.0,0.00017899,2]
[404004387,1769710240294,-25000.0,0.000179,3]
[404004388,1769710240303,-632.9712,0.000179,2]
[404004389,1769710240312,-25000.0,0.000179,3]
[404004390,1769710240322,-153.72473404,0.000179,2]
[404004391,1769710240334,-500.0,0.000179,6]
[404004392,1769710240344,-5518.43958928,0.000179,3]
[404004393,1769710240353,-539.31898771,0.000179,2]
[404004394,1769710240362,-168.95746243,0.000179,2]
[404004395,1769710240374,-5854.0262145,0.000179,2]
[404004396,1769710240383,-21633.7938438,0.000179,2]
[404004397,1769710240392,-500.0,0.000179,2]
[404004398,1769710240401,-500.0,0.000179,2]
[404004399,1769710240410,-500.0,0.000179,2]
[404004400,1769710240419,-500.0,0.000179,2]
[404004402,1769710240428,-500.0,0.000179,2]
[404004403,1769710240438,-500.0,0.000179,2]
[404004404,1769710240447,-500.0,0.000179,2]
[404004405,1769710240455,-500.0,0.000179,2]
[404004406,1769710240464,-500.0,0.000179,2]
[404004407,1769710240473,-316.69388857,0.000179,2]
[404004408,1769710240484,-8299.0,0.000179,2]
[404004409,1769710240493,-200.0,0.00017945,2]
[404004410,1769710240502,-250.0,0.00017962,2]
[404004411,1769710240511,-500.0,0.00017973,2]
[404004412,1769710240520,-378.88576021,0.00017973,2]
[404004413,1769710240529,-500.0,0.00017973,2]
[404004414,1769710240538,-500.0,0.00017973,2]
[404004415,1769710240547,-500.0,0.00017973,2]
[404004416,1769710240556,-500.0,0.00017973,2]
[404004417,1769710240566,-636.09023448,0.00017973,2]
[404004418,1769710240575,-500.0,0.00017973,2]
[404004419,1769710240584,-500.0,0.00017973,2]
[404004420,1769710240593,-505.47748232,0.00017973,2]
[404004421,1769710240602,-500.0,0.00017973,2]
[404004422,1769710240610,-500.0,0.00017973,2]
[404004423,1769710240620,-500.0,0.00017973,2]
[404004424,1769710240629,-500.0,0.00017973,2]
[404004425,1769710240638,-500.0,0.00017973,2]
[404004426,1769710240647,-500.0,0.00017973,2]
[404004427,1769710240656,-500.0,0.00017973,2]
[404004428,1769710240665,-525.04982288,0.00017973,2]
[404004429,1769710240674,-500.0,0.00017973,2]
[404004430,1769710240683,-500.0,0.00017973,2]
[404004431,1769710240692,-500.0,0.00017973,2]
[404004432,1769710240701,-500.0,0.00017973,2]
[404004433,1769710240711,-500.0,0.00017973,2]
[404004434,1769710240720,-580.50276213,0.00017973,2]
[404004435,1769710240729,-500.0,0.00017973,2]
[404004436,1769710240739,-500.0,0.00017973,2]
[404004437,1769710240748,-150.0,0.00017973,2]
[404004438,1769710240757,-151.0,0.00017993,2]
[404004439,1769710240767,-673146.5494749,0.00017996,2]
[404004440,1769710240776,-21618.9457037,0.00017996,2]
[404004441,1769710240786,-250.0,0.00017996,5]
[404004442,1769710240795,-250.0,0.00017996,5]
[404004443,1769710240804,-250.0,0.00017996,5]
[404004444,1769710240813,-250.0,0.00017996,5]
[404004445,1769710240823,-250.0,0.00017996,5]
[404004446,1769710240832,-250.0,0.00017996,5]
[404004447,1769710240841,-250.0,0.00017996,5]
[404004448,1769710240850,-250.0,0.00017996,5]
[404004449,1769710240859,-250.0,0.00017996,5]
[404004450,1769710240868,-250.0,0.00017996,5]
[404004451,1769710240878,-250.0,0.00017996,5]
[404004452,1769710240887,-250.0,0.00017996,5]
[404004453,1769710240896,-250.0,0.00017996,5]
[404004454,1769710240906,-250.0,0.00017996,5]
[404004455,1769710240915,-250.0,0.00017996,5]
[404004456,1769710240926,-291.517907,0.00017996,5]
[404004457,1769710240935,-151.0,0.00017997,2]
[404004458,1769710240944,-155.0,0.00017999,2]
[404004459,1769710240953,-500.0,0.00017999,2]
[404004460,1769710240962,-300.0,0.00017999,2]
[404004461,1769710240971,-300.0,0.00017999,2]
[404004462,1769710240980,-666.0,0.00017999,2]
[404004463,1769710240990,-2355292.26057004,0.00018,2]
[404004464,1769710241006,-841.13,0.00018,2]
[404004465,1769710241017,-4200.0,0.00018,2]
[404004466,1769710241027,-1097.80243157,0.00018,2]
[404004476,1769710243622,-151.0,0.00016237,2]
[404004477,1769710243632,-186.3965939,0.00017899,2]
[404004478,1769710243641,-1450.6034061,0.00018,2]
[404004479,1769710243654,-3900923.51801521,0.00018,2]
[404004480,1769710243663,-408617.80547265,0.00018,2]
[404004481,1769710243673,-651646.72074704,0.00018,2]
[404004482,1769710243682,-1885952.26349529,0.00018,2]
[404004483,1769710243694,-4289.4276838,0.00018,2]
[404004484,1769710243705,-752.22860515,0.00018,2]
[404004485,1769710243718,-11421.40373285,0.00018,2]
[404004486,1769710243730,-8400.0,0.00018,2]
[404004487,1769710244418,-2361.25646142,0.00018,2]
[404004488,1769710244430,-253.83839234,0.00018,2]
[404004495,1769710245908,-1428.61378995,0.0001769,2]
[404004496,1769710245919,-19789.39514497,0.00018,2]
[404004497,1769710245930,-15420.32352435,0.00018,2]
[404004498,1769710245942,-14621.999999,0.00018,2]
[404004499,1769710245953,-9702.60093854,0.00018,2]
[404004500,1769710245970,-69323.83765311,0.00018,2]
[404004501,1769710245986,-897.9,0.00018,2]
[404004502,1769710246076,-1778.6626329,0.00018,2]
[404004503,1769710246088,-287.44523292,0.00018,2]
[404004504,1769710246100,-15009.76333716,0.00018,2]
[404004505,1769710246114,-1695.07994181,0.00018,2]
[404004506,1769710246131,-257.42503718,0.00018,2]
[404004507,1769710246143,-501.0,0.00018,2]
[404004508,1769710246187,-12357.7878834,0.00018,2]
[404004509,1769710246199,-16852.40693798,0.00018,2]
[404004510,1769710246245,-697.01763688,0.00018,2]
[404004511,1769710246257,-291.3,0.00018,2]
[404004512,1769710246268,-12714.54804547,0.00018,2]
[404004743,1769710271266,4922.65239453,0.00015553,2]
[404004744,1769710271291,8570.89404592,0.00015553,2]
[404004745,1769710271318,7147.20131732,0.00015553,2]
[404004746,1769710293034,2998.087,0.00015242,2]
[404004747,1769710293183,214.654,0.00015242,2]
[404004751,1769710322175,1049.61,0.00015164,2]
[404004752,1769710322410,1049.61,0.00015212,2]
[404004753,1769710322623,1049.61,0.0001526,2]
[404004754,1769710322822,1049.61,0.00015309,2]
[404004755,1769710323022,92.2692381,0.00015357,2]
[404004780,1769710504540,-2091.0,0.00015317,2]
[404004784,1769710876736,166.66,0.00014018,2]
[404004818,1769711134115,-161.08071912,0.00014313,2]
[404004825,1769711225109,-5.57928088,0.00014313,2]
[404004826,1769711225131,-215.8257031,0.00014461,2]
[404004827,1769711234086,-34.1742969,0.00014461,2]
[404004828,1769711234106,-125.25637168,0.00014608,2]
[404004829,1769711243086,-41.40362832,0.00014608,2]